[Event "Mongolian Championship Women 2022"]
[Site "Chingis Khentii"]
[Date "2022.05.18"]
[Round "6.6"]
[White "Khulan, Enkhsaikhan"]
[Black "Munkhzul, Turmunkh"]
[Result "1-0"]
[ECO "D36"]
[WhiteElo "2111"]
[BlackElo "2294"]
[Annotator "TA"]
[PlyCount "157"]
[EventDate "2022.05.12"]
[EventType "tourn"]
[EventCountry "MGL"]
[SourceTitle "playchess.com"]
[Source "ChessBase"]
[SourceQuality "1"]
[TimeControl "40/5400+30:1800+30"]

{[%evp 25,157,36,36,36,35,32,31,0,22,0,0,0,6,0,22,25,41,0,8,6,22,22,27,-20,-25,-31,-25,-29,-29,-94,0,0,0,0,0,-8,0,0,0,0,0,0,10,0,0,0,0,0,0,0,74,39,205,220,231,62,58,28,28,6,112,102,158,150,412,396,411,365,487,475,404,348,560,534,564,565,639,628,669,0,694,679,774,771,704,595,709,722,711,712,677,656,1956,1971,1997,1975,1859,1867,1674,1591,1855,1918,1697,1626,2279,2097,6821,5720,3392,3133,29988,29989,29989,29990,29990,29989,29994,29982,29982,29983,29982,29983,29984,29985,29985,29986,29986,29987,29989,29990,29990,29991,29996,29993]} 1. Nf3 {[%emt 0:02:01]} Nf6 {[%emt 0:00:14]} 2. c4 {[%emt 0:00:29]} e6 {[%emt 0:00:15]} 3. d4 {[%emt 0:01:37]} d5 {[%emt 0:00:10]} 4. cxd5 {[%emt 0:02:30]} exd5 {[%emt 0:00:26]} 5. Nc3 {[%emt 0:00:21]} Be7 {[%emt 0:00:47]} 6. Qc2 {[%emt 0:00:38]} c6 {[%emt 0:02:07]} 7. Bg5 {[%emt 0:00:51]} O-O {[%emt 0:08:01]} 8. e3 {[%emt 0:00:16]} Re8 {[%emt 0:01:02]} 9. Bd3 {[%emt 0:02:19]} Nbd7 {[%emt 0:01:04]} 10. O-O {[%emt 0:00:39]} Nf8 {[%emt 0:01:27]} 11. Rab1 {[%emt 0:04:04]} h6 {[%emt 0:04:22]} 12. Bh4 {[%emt 0:02:41]} Ne4 {[%emt 0:05:12]} 13. Bxe7 {[%emt 0:07:51]} Qxe7 {[%emt 0:00:21]} 14. b4 {[%emt 0:00:23] D36: Queen's Gambit Declined: Exchange Variation: Main line (5 Bg5 c6 6 Qc2).} a6 {[%emt 0:01:22]} 15. a4 {[%emt 0:02:28]} Bf5 {[%emt 0:12:38]} 16. Rb3 {[%emt 0:05:15] [#] White is slightly better.} Rac8 $146 {[%emt 0:04:52]} ({Predecessor:} 16... Nd7 17. b5 axb5 18. axb5 Nxc3 19. Rxc3 Bxd3 20. Qxd3 Qf6 21. h3 Ra2 22. Rfc1 Re6 {½-½ (60) Nagel,B-Barth,A (2190) Germany 1999}) 17. a5 {[%emt 0:01:09]} Rcd8 {[%emt 0:05:19]} 18. Na4 {[%emt 0:01:29]} Bc8 {[%emt 0:01:39]} 19. Nc5 {[%emt 0:01:33]} Ng5 {[%emt 0:03:42]} 20. Ne5 {[%emt 0:02:02][%cal Oc5a6]} Ne4 {[%emt 0:04:47][%cal Bg5e4,Be4d6,Bd6b5][%mdl 32]} 21. Nf3 {[%emt 0:09:26]} Nd6 {[%emt 0:01:17]} 22. Rc3 {[%emt 0:02:24][%cal Bb3c3,Bc3c6,Bc6b6,Bb6b7][%mdl 32]} Ne6 {[%emt 0:03:49]} 23. Ne5 {[%emt 0:03:26]} Nc7 {[%emt 0:10:42]} 24. Nxb7 {[%emt 0:10:24]} Bxb7 $11 {[%emt 0:03:21]} 25. Nxc6 {[%emt 0:00:08]} Bxc6 {[%emt 0:01:07]} 26. Rxc6 {[%emt 0:00:07]} Ndb5 {[%emt 0:04:16]} 27. Qc5 {[%emt 0:02:46]} (27. Rc1 $11) 27... Qxc5 {[%emt 0:03:22]} (27... Rd6 $17 {...Rxc6 is the strong threat.} 28. Rxd6 Qxd6) 28. bxc5 {[%emt 0:00:42]} Re6 {[%emt 0:02:58]} 29. Rb6 {[%emt 0:01:02]} Kf8 {[%emt 0:02:37]} 30. Rc1 {[%emt 0:02:06]} Ke8 {[%emt 0:01:35]} 31. g4 {[%emt 0:04:48]} g6 {[%emt 0:01:11]} 32. h4 {[%emt 0:00:48]} Ke7 {[%emt 0:01:30]} 33. Kg2 {[%emt 0:02:41]} Na8 {[%emt 0:03:46]} 34. Rb7+ {[%emt 0:05:25]} Rd7 {[%emt 0:00:07]} 35. Rb8 {[%emt 0:00:08]} Rd8 $1 {[%emt 0:00:08]} 36. Rb7+ {[%emt 0:00:14]} Rd7 {[%emt 0:00:06]} 37. Rb8 {[%emt 0:00:05]} Ra7 {[%emt 0:03:07]} (37... Rd8 $1 $11 {keeps the balance.} 38. Rb7+) 38. h5 {[%emt 0:02:19][%mdl 1024] White has strong compensation.} ({But not} 38. Bxb5 $6 axb5 39. Rxb5 Nc7 $15) 38... g5 {[%emt 0:01:51]} (38... gxh5 $1 $14 39. gxh5 Nac7) 39. Bf5 $18 {[%emt 0:03:39]} Rc6 {[%emt 0:01:45] [#]} 40. Kg3 $2 {[%emt 0:00:00]} (40. Re1 $1 $18) 40... Nac7 $14 {[%emt 0:00:00]} 41. Rb6 {[%emt 0:06:39]} (41. Re1 $5 {[%cal Rb8b6]}) 41... Rf6 {[%emt 0:01:34]} 42. f4 {[%emt 0:07:55] Hoping for fxg5.} gxf4+ {[%emt 0:05:57]} (42... Ne6 $1 $11 43. fxg5 Nxg5) 43. Kxf4 $16 {[%emt 0:00:46] Black is on the road to losing.} Ra8 {[%emt 0:05:05]} (43... Ne6+ $142 44. Ke5 Nbc7) 44. Ke5 {[%emt 0:01:55] Chess con chili. White is more active.} Rxb6 {[%emt 0:00:16]} (44... Ne6 $16) 45. axb6 $18 {[%emt 0:01:46]} ({Weaker is} 45. cxb6 f6+ 46. Kf4 Ne6+ 47. Kg3 (47. Bxe6 Kxe6 48. Rc6+ Nd6 $11) 47... Nd6 $11) 45... f6+ {[%emt 0:00:20]} 46. Kf4 {[%emt 0:00:19]} a5 {[%emt 0:05:22]} 47. bxc7 {[%emt 0:04:38]} Nxc7 {[%emt 0:00:06][%mdl 4096] Endgame KRB-KRN} 48. Rb1 {[%emt 0:00:31]} Ra7 $2 {[%emt 0:04:01]} (48... Ne6+ 49. Kg3 Ra7) 49. Rb6 {[%emt 0:01:15]} Kf7 {[%emt 0:01:58]} 50. Bg6+ {[%emt 0:02:02]} Kg7 {[%emt 0:06:01]} 51. Bc2 {[%emt 0:01:56]} Kf7 {[%emt 0:02:27]} 52. Bg6+ {[%emt 0:04:00]} Kg7 $1 {[%emt 0:00:06]} 53. Bb1 {[%emt 0:00:08]} Kf7 {[%emt 0:00:42]} 54. Ba2 {[%emt 0:00:11]} Ne6+ {[%emt 0:00:17]} 55. Kf3 {[%emt 0:02:55]} Rd7 {[%emt 0:01:17]} 56. Ra6 {[%emt 0:02:20]} Ng5+ {[%emt 0:00:28]} 57. Kf4 {[%emt 0:00:44]} Ne6+ {[%emt 0:01:18]} 58. Kg3 {[%emt 0:01:05]} Ng5 {[%emt 0:00:23]} 59. c6 {[%emt 0:01:52]} Rc7 {[%emt 0:00:37]} 60. Bxd5+ {[%emt 0:00:14]} Ke7 {[%emt 0:00:05]} 61. Rxa5 {[%emt 0:00:19]} Kd6 {[%emt 0:00:23]} 62. e4 {[%emt 0:00:55]} Re7 {[%emt 0:00:32]} 63. Kf4 {[%emt 0:00:27]} Nh3+ {[%emt 0:03:09]} 64. Kf5 {[%emt 0:00:53]} Nf2 {[%emt 0:00:42]} 65. Ra8 {[%emt 0:01:51] [#] Threatens to win with Rf8.} Rg7 {[%emt 0:00:34]} 66. Rd8+ {[%emt 0:01:53]} Kc7 {[%emt 0:00:06]} 67. Kxf6 {[%emt 0:02:33]} Rxg4 {[%emt 0:00:13]} 68. Rd7+ {[%emt 0:00:24] White mates.} Kc8 {[%emt 0:01:24]} 69. Re7 {[%emt 0:00:18]} Rf4+ {[%emt 0:00:17]} 70. Kg6 {[%emt 0:02:56]} Ng4 {[%emt 0:00:46]} 71. Rf7 {[%emt 0:01:49]} Rxf7 {[%emt 0:00:34]} 72. Bxf7 {[%emt 0:01:15] KB-KN} Kc7 {[%emt 0:00:06]} 73. Be8 {[%emt 0:01:04]} Nf2 {[%emt 0:00:58]} 74. e5 {[%emt 0:00:17]} Nd3 {[%emt 0:00:16]} 75. Bd7 {[%emt 0:00:11]} Nf4+ {[%emt 0:00:16]} 76. Kxh6 {[%emt 0:00:11]} Ne2 {[%emt 0:00:04]} 77. d5 {[%emt 0:00:11][%cal Bd4d5,Bd5d6][%mdl 32]} Nf4 {[%emt 0:00:06]} 78. d6+ {[%emt 0:00:11]} Kd8 {[%emt 0:00:04]} 79. Bf5 {[%emt 0:00:16] Weighted Error Value: White=0.30/Black=0.40} 1-0

[Event "Mongolian Championship Women 2022"]
[Site "Chingis Khentii"]
[Date "2022.05.19"]
[Round "7.1"]
[White "Bayarmaa, Bayarjargal"]
[Black "Amin-Erdene, Bayanmunkh"]
[Result "1-0"]
[ECO "E73"]
[WhiteElo "2124"]
[BlackElo "1425"]
[Annotator "TA"]
[PlyCount "89"]
[EventDate "2022.05.12"]
[EventType "tourn"]
[EventCountry "MGL"]
[SourceTitle "playchess.com"]
[Source "ChessBase"]
[SourceQuality "1"]
[TimeControl "40/5400+30:1800+30"]

{[%evp 17,89,49,50,3,20,23,46,16,64,-16,58,0,0,0,0,23,8,0,0,6,45,46,61,68,64,59,55,59,72,47,62,62,61,49,85,81,83,77,102,43,96,84,85,95,197,191,184,152,347,360,333,345,346,306,508,274,398,393,978,820,29987,29988,29988,29989,29978,29979,29990,29991,29993,29993,29993,29994,29994,29995]} 1. d4 {[%emt 0:00:03]} Nf6 {[%emt 0:00:02]} 2. c4 {[%emt 0:00:06]} g6 {[%emt 0:00:04]} 3. Nc3 {[%emt 0:00:06]} Bg7 {[%emt 0:00:03]} 4. e4 {[%emt 0:00:05]} d6 {[%emt 0:00:04]} 5. Be2 {[%emt 0:00:05]} O-O {[%emt 0:00:04]} 6. Bg5 {[%emt 0:00:17]} Na6 {[%emt 0:00:17]} 7. Qd2 {[%emt 0:00:54]} e5 {[%emt 0:00:55]} 8. d5 {[%emt 0:00:11]} Qe8 {[%emt 0:00:13]} 9. f3 {[%emt 0:01:09]} Nh5 {[%emt 0:03:34][%cal Oh5f4]} 10. g3 {[%emt 0:01:34] Inhibits Nf4. E73: King's Indian: Averbakh Variation without 6...c5.} (10. Bd1 $14 {might be stronger.}) 10... f6 {[%emt 0:01:52][%cal Bf7f6,Bf6f5][%mdl 32]} 11. Be3 {[%emt 0:01:16]} f5 {[%emt 0:01:41] [#]} 12. O-O-O $146 {[%emt 0:10:03] White is slightly better.} ({Predecessor:} 12. exf5 gxf5 13. O-O-O Bd7 14. Bd3 Nc5 15. Bc2 b6 16. Nge2 Kh8 17. f4 Nf6 18. fxe5 dxe5 {0-1 (37) Hercules,B (2162)-Klaasen,C (2282) Pretoria 2019}) 12... Nf6 {[%emt 0:03:21]} (12... fxe4 $11 13. fxe4 b6) 13. Bd3 {[%emt 0:02:07]} (13. exf5 $14 gxf5 14. Re1) 13... Nc5 {[%emt 0:04:34]} (13... c6 $11) 14. Bc2 {[%emt 0:03:00]} (14. Bxc5 $5 dxc5 15. Nge2 $11) 14... fxe4 {[%emt 0:02:55]} 15. Bxc5 {[%emt 0:07:47]} dxc5 {[%emt 0:02:39]} 16. Nxe4 {[%emt 0:00:06]} Nxe4 {[%emt 0:14:58]} 17. Bxe4 {[%emt 0:00:51]} Bf5 {[%emt 0:01:16]} 18. Kb1 {[%emt 0:04:34]} b5 {[%emt 0:03:13]} 19. Ne2 {[%emt 0:02:37][%cal Bg1e2,Be2c3,Bc3e4][%mdl 32]} bxc4 {[%emt 0:07:53]} 20. Nc3 {[%emt 0:01:38]} Rb8 {[%emt 0:12:24]} 21. Qe2 {[%emt 0:06:30][%mdl 1024] White has compensation.} Bh6 {[%emt 0:04:08]} 22. Ka1 {[%emt 0:03:02]} Qe7 {[%emt 0:04:13]} 23. Rhe1 {[%emt 0:01:16]} Qd6 {[%emt 0:03:13]} 24. g4 {[%emt 0:08:54][%cal Bg3g4,Bg4g5][%mdl 32]} Bxe4 {[%emt 0:05:03]} 25. Nxe4 {[%emt 0:00:13]} Qb6 {[%emt 0:00:20][%cal Oh6e3] [#] Hoping for ...Be3!} 26. g5 {[%emt 0:00:21]} Bg7 {[%emt 0:00:16][%cal Of8f3]} 27. Rd2 {[%emt 0:01:52][%cal Bd1d2,Bd2c2,Bc2c4][%mdl 32] White is more active.} Kh8 {[%emt 0:03:19]} 28. Rf1 {[%emt 0:01:52]} (28. Rc1 $16) 28... Qb4 {[%emt 0:06:49]} (28... c3 $14 29. Nxc3 Rf4) 29. Rc2 $16 {[%emt 0:02:39]} Rbd8 {[%emt 0:01:33]} 30. Rd1 {[%emt 0:07:06]} ({Reject} 30. Qxc4 $6 Qxc4 31. Rxc4 Rxd5 $11) 30... Rf5 {[%emt 0:02:36]} (30... Qb5 $16) 31. Rxc4 $18 {[%emt 0:02:18]} Qb5 {[%emt 0:01:16]} 32. Qc2 {[%emt 0:03:05]} ({Don't take} 32. Nxc5 $6 Rf4 33. Ne4 Rxf3 $16) 32... Rxf3 $2 {[%emt 0:01:55] This costs Black the game.} (32... Bf8 $16 {was necessary.}) 33. Rxc5 {[%emt 0:00:08]} Qd7 {[%emt 0:02:06]} 34. Rxc7 {[%emt 0:01:05]} Qg4 {[%emt 0:00:59]} 35. d6 {[%emt 0:01:54][%cal Bd5d6,Bd6d7][%mdl 32]} ({Don't do} 35. Rxa7 Rc8 36. Qb1 Re3 $18) 35... Re3 $2 {[%emt 0:01:04]} (35... Rf4 {keeps fighting.}) 36. Rc4 {[%emt 0:04:37][%cal Od6d7] [#] And now d7! would win.} Re2 {[%emt 0:01:25]} (36... Rf3 $142 37. Rc7 Rf4) 37. Qa4 {[%emt 0:00:58] aiming for Nc3.} Qg2 $2 {[%emt 0:03:07]} (37... Re3 38. d7 Bf8) 38. d7 {[%emt 0:03:06] Threatening mate with Rc8.} Qf3 {[%emt 0:03:16]} 39. Rc8 {[%emt 0:01:36] White mates.} Qf8 {[%emt 0:00:13]} 40. Rxd8 {[%emt 0:00:00]} Qxd8 {[%emt 0:00:00]} 41. Qc4 {[%emt 0:02:03]} Rxe4 {[%emt 0:04:23]} 42. Qxe4 {[%emt 0:01:11]} Kg8 {[%emt 0:00:36]} 43. Qd5+ {[%emt 0:00:44]} Kh8 {[%emt 0:00:40]} 44. Qf7 {[%emt 0:00:08]} Bf8 {[%emt 0:00:18]} 45. Qe8 {[%emt 0:00:17] Weighted Error Value: White=0.18 (very precise) /Black=0.46} 1-0

[Event "Mongolian Championship Women 2022"]
[Site "Chingis Khentii"]
[Date "2022.05.19"]
[Round "7.2"]
[White "Tsetsenbileg, Munkhbayar"]
[Black "Khulan, Enkhsaikhan"]
[Result "1/2-1/2"]
[ECO "D13"]
[WhiteElo "1830"]
[BlackElo "2111"]
[Annotator "TA"]
[PlyCount "203"]
[EventDate "2022.05.12"]
[EventType "tourn"]
[EventCountry "MGL"]
[SourceTitle "playchess.com"]
[Source "ChessBase"]
[SourceQuality "1"]
[TimeControl "40/5400+30:1800+30"]

{[%evp 12,203,31,33,52,29,36,0,0,0,8,0,60,56,57,64,65,35,46,25,24,27,34,27,25,31,31,6,12,10,72,77,78,0,88,14,11,4,7,6,25,14,17,0,2,0,0,0,0,0,0,-95,-22,-22,0,0,0,-16,-16,-16,-16,-16,-16,-16,0,-22,-22,-22,-22,-21,-26,-25,-28,-29,-29,-29,-29,-106,-106,-106,-106,-106,-106,-106,-106,-106,-106,-106,-106,-106,-106,-106,-106,-106,-106,-106,0,-106,-106,-106,-106,-106,-106,-106,-106,-106,-106,-106,-106,-106,0,-106,-106,-106,-106,-106,-106,-106,-106,-106,-106,-106,-106,-106,-106,-106,0,-33,0,-33,-33,-33,-33,-33,-33,-33,-33,-33,-33,-33,-33,-33,-32,-33,-33,-33,-33,-33,-33,-33,-33,-33,0,0,0,-33,-33,-33,-33,-33,-33,-33,-33,-33,0,0,0,0,0,0,0,0,0,0,0,0,0,0,0,0,0,0,0,0,0,0,0,0,0,0,0,0,0,0]} 1. d4 {[%emt 0:01:09]} d5 {[%emt 0:00:06]} 2. c4 {[%emt 0:00:15]} c6 {[%emt 0:00:05]} 3. cxd5 {[%emt 0:00:52]} cxd5 {[%emt 0:00:07]} 4. Nc3 {[%emt 0:00:02]} Nc6 {[%emt 0:00:30]} 5. Nf3 {[%emt 0:00:12]} Nf6 {[%emt 0:00:13]} 6. Bf4 {[%emt 0:00:14]} Qb6 {[%emt 0:02:53]} 7. a3 {[%emt 0:05:22]} e6 {[%emt 0:18:22] D13: Slav Defence: Exchange variation without ...Bf5.} ({Not} 7... Qxb2 8. Na4 Qb5 9. Bd2 $16) 8. Na4 {[%emt 0:05:53]} (8. e3 $5 {[%cal Rc3b5]}) 8... Qd8 {[%emt 0:00:50]} 9. Rc1 {[%emt 0:04:50]} Ne4 {[%emt 0:04:09]} 10. Nc3 {[%emt 0:09:06] [#]} Be7 $146 {[%emt 0:06:02]} ({Predecessor:} 10... Qa5 11. e3 Be7 12. Bd3 Nxc3 13. Rxc3 Bxa3 14. O-O Be7 15. Qc2 Bd7 16. Bxh7 f5 17. Bg6+ Kf8 18. Ng5 Bxg5 19. Bxg5 {1-0 (34) Porter,R (1952)-Patrick,D (1870) Wakefield 2016}) 11. e3 {[%emt 0:02:32]} Nxc3 {[%emt 0:10:53]} (11... g5 $11 12. Bg3 h5) 12. Rxc3 $14 {[%emt 0:00:22]} O-O {[%emt 0:00:07]} 13. Bd3 {[%emt 0:02:32]} Bd7 {[%emt 0:06:44]} 14. Bb1 {[%emt 0:04:22] White is more active.} Rc8 {[%emt 0:04:38]} 15. Qd3 {[%emt 0:01:00][%csl Gb1][%cal Rd3h7]} f5 {[%emt 0:01:07]} 16. O-O {[%emt 0:02:05]} g5 {[%emt 0:07:32]} 17. Bg3 {[%emt 0:03:39]} h5 {[%emt 0:03:01]} 18. h3 $1 {[%emt 0:03:00]} g4 {[%emt 0:07:09]} 19. Ne5 {[%emt 0:09:06]} Nxe5 {[%emt 0:03:46]} 20. Bxe5 {[%emt 0:00:18]} Qb6 {[%emt 0:00:51]} (20... Bf6 $11 {keeps the balance.}) 21. Rb3 $16 {[%emt 0:03:28]} Qc6 {[%emt 0:00:13]} 22. Rc3 {[%emt 0:00:14]} (22. e4 $16) 22... Qb5 {[%emt 0:01:56] [#]} (22... Qb6 $1 $11 23. Rb3 Qc6) 23. Qxb5 {[%emt 0:01:29]} (23. Rxc8 $1 $16 Rxc8 24. Qd2 gxh3 25. Bd3 (25. gxh3 Kh7 $16)) 23... Bxb5 $11 {[%emt 0:00:01]} 24. Rfc1 {[%emt 0:00:16]} Rc6 {[%emt 0:01:12]} (24... Bd7 {feels hotter.} 25. Rc7 Kf7 26. Bd3 Bc6) 25. Rxc6 {[%emt 0:08:09]} Bxc6 {[%emt 0:04:10]} 26. hxg4 {[%emt 0:00:13]} hxg4 {[%emt 0:02:21]} 27. g3 {[%emt 0:02:06]} Kf7 {[%emt 0:01:21]} 28. Kg2 {[%emt 0:00:18]} Bf6 {[%emt 0:00:43]} 29. Bxf6 {[%emt 0:01:19]} Kxf6 {[%emt 0:00:10][%mdl 4096] Endgame KRB-KRB} 30. Rh1 {[%emt 0:00:09]} Bb5 {[%emt 0:01:39] ...Be2 is the strong threat.} 31. f4 {[%emt 0:08:53] [#]} (31. f3 $1 $11 {remains equal.}) 31... Rc8 {[%emt 0:04:20]} (31... Kg6 $1 $17 32. Kf2 Rc8) 32. Rh6+ {[%emt 0:00:28]} Ke7 {[%emt 0:00:11]} 33. Rh7+ {[%emt 0:00:27]} Kd6 {[%emt 0:00:53]} 34. Rxb7 {[%emt 0:00:37]} a6 {[%emt 0:02:38] aiming for ...Rc1.} 35. Rb6+ {[%emt 0:00:47]} Ke7 {[%emt 0:00:11]} 36. a4 {[%emt 0:00:21]} Bxa4 {[%emt 0:00:27] Threatens to win with ...Bb5.} 37. Rxa6 {[%emt 0:00:28]} Bd1 {[%emt 0:01:40]} 38. Bd3 {[%emt 0:01:26]} Rb8 {[%emt 0:01:15]} 39. Ra2 {[%emt 0:04:10]} Rb3 {[%emt 0:00:06]} 40. Bf1 {[%emt 0:00:00]} Rxe3 {[%emt 0:00:00] Black wants to play ...Bf3+.} 41. b4 {[%emt 0:00:33]} Rb3 {[%emt 0:01:18]} 42. b5 {[%emt 0:00:25]} Rb4 {[%emt 0:00:31]} 43. Ra7+ $1 {[%emt 0:00:31]} Kf6 {[%emt 0:02:26]} 44. Rb7 {[%emt 0:01:25]} (44. Kf2 $11) 44... Rxd4 $17 {[%emt 0:04:01]} 45. b6 {[%emt 0:00:48]} Rb4 {[%emt 0:03:24]} 46. Rb8 {[%emt 0:00:26]} d4 {[%emt 0:00:33]} 47. Kf2 {[%emt 0:00:08]} Bf3 {[%emt 0:01:13] Against b7} 48. Ba6 {[%emt 0:01:03]} Ke7 {[%emt 0:03:38]} 49. b7 {[%emt 0:00:42]} Kd7 {[%emt 0:00:32]} 50. Ke1 {[%emt 0:01:50]} Rb2 {[%emt 0:00:13]} 51. Kf1 {[%emt 0:01:21]} Be4 {[%emt 0:01:25] And now ...d3 would win.} 52. Rc8 {[%emt 0:01:21]} Rb1+ {[%emt 0:05:02]} 53. Kf2 {[%emt 0:02:20]} Rb2+ {[%emt 0:01:09]} 54. Kf1 $1 {[%emt 0:01:17]} Bxb7 {[%emt 0:00:53]} 55. Bxb7 {[%emt 0:00:07]} Rxb7 {[%emt 0:00:04] KR-KR} (55... d3 {is interesting.} 56. Rc4 Rb1+ 57. Kf2 Rxb7 58. Rd4+ Ke8) 56. Rc4 {[%emt 0:00:05]} Kd6 {[%emt 0:00:17]} 57. Rxd4+ {[%emt 0:00:06]} Kc5 {[%emt 0:00:18]} 58. Rd3 {[%emt 0:00:19]} Rb4 {[%emt 0:01:12]} 59. Kf2 {[%emt 0:00:23]} Rb2+ {[%emt 0:01:17]} 60. Kf1 {[%emt 0:00:12]} Rb4 {[%emt 0:02:11]} 61. Kf2 $1 {[%emt 0:00:13]} Rd4 {[%emt 0:00:14]} 62. Re3 {[%emt 0:00:16]} Kd6 {[%emt 0:01:44]} 63. Ra3 {[%emt 0:00:32]} Rd2+ {[%emt 0:02:23]} 64. Kf1 {[%emt 0:00:15]} Kd5 {[%emt 0:03:53] Strongly threatening ...Kd4.} 65. Re3 {[%emt 0:00:31]} Rc2 {[%emt 0:01:23]} 66. Re5+ {[%emt 0:00:24]} Kd6 {[%emt 0:00:05]} 67. Re3 {[%emt 0:00:06]} Rc5 {[%emt 0:02:32]} 68. Kf2 {[%emt 0:00:38]} e5 {[%emt 0:00:50]} (68... Ra5 $17 69. Rd3+ Kc5) 69. fxe5+ {[%emt 0:00:09]} Rxe5 {[%emt 0:00:35]} 70. Ra3 {[%emt 0:00:10]} Rc5 {[%emt 0:01:58]} 71. Re3 {[%emt 0:00:25]} Rc2+ {[%emt 0:00:45]} 72. Kf1 {[%emt 0:00:02]} Kd5 {[%emt 0:00:30]} 73. Re8 {[%emt 0:00:38]} Kd4 {[%emt 0:00:22]} 74. Re7 {[%emt 0:00:15]} Rc3 {[%emt 0:01:51]} 75. Kf2 {[%emt 0:00:16]} Rf3+ {[%emt 0:00:16]} 76. Kg2 {[%emt 0:00:01]} Re3 {[%emt 0:00:38]} 77. Rf7 {[%emt 0:00:33]} Re2+ {[%emt 0:00:49]} 78. Kf1 {[%emt 0:00:13]} Re5 {[%emt 0:00:12]} 79. Kf2 {[%emt 0:00:08]} Ke4 {[%emt 0:00:55]} 80. Ra7 $1 {[%emt 0:00:10]} Rc5 {[%emt 0:01:25]} 81. Re7+ {[%emt 0:00:16]} Kd3 {[%emt 0:00:18]} 82. Rd7+ {[%emt 0:00:06]} Ke4 {[%emt 0:00:39]} 83. Re7+ {[%emt 0:00:08]} Kd4 {[%emt 0:00:24]} 84. Rd7+ {[%emt 0:00:13]} Ke5 {[%emt 0:00:13]} 85. Re7+ {[%emt 0:00:07]} Kf6 {[%emt 0:00:10]} 86. Re3 {[%emt 0:00:18]} Rc2+ {[%emt 0:00:34]} 87. Kf1 {[%emt 0:00:02]} f4 {[%emt 0:00:13]} 88. gxf4 {[%emt 0:00:25] The position is equal.} Kf5 {[%emt 0:00:06]} 89. Ra3 {[%emt 0:00:41]} Kxf4 {[%emt 0:01:09]} 90. Rb3 {[%emt 0:00:10]} Kg5 {[%emt 0:00:19]} 91. Ra3 {[%emt 0:02:03]} Kh4 {[%emt 0:00:23]} 92. Rb3 {[%emt 0:00:18]} g3 {[%emt 0:01:20] White must now prevent ...Kh3.} 93. Rb8 {[%emt 0:00:08]} Rf2+ {[%emt 0:00:39]} 94. Kg1 {[%emt 0:00:11]} Rf4 {[%emt 0:00:18]} 95. Kg2 {[%emt 0:00:24]} Rf2+ {[%emt 0:00:09]} 96. Kg1 {[%emt 0:00:01]} Ra2 {[%emt 0:00:15]} 97. Rh8+ {[%emt 0:00:07]} Kg4 {[%emt 0:00:04]} 98. Rg8+ {[%emt 0:00:04]} Kh4 {[%emt 0:00:12]} (98... Kf3 $5 99. Rf8+ Kg4 $11) 99. Rh8+ {[%emt 0:00:05]} Kg4 {[%emt 0:00:05]} 100. Rg8+ {[%emt 0:00:03]} Kh4 {[%emt 0:00:06]} (100... Kf3 $5 101. Rf8+ Kg4 $11) 101. Rh8+ {[%emt 0:00:03]} Kg4 {[%emt 0:00:29]} 102. Rg8+ {[%emt 0:00:05] Weighted Error Value: White=0.13 (very precise) /Black=0.15 (very precise)} 1/2-1/2

[Event "Mongolian Championship Women 2022"]
[Site "Chingis Khentii"]
[Date "2022.05.19"]
[Round "7.3"]
[White "Munkhzul, Davaakhuu"]
[Black "Enkhtuul, Altan-Ulzii"]
[Result "0-1"]
[ECO "B76"]
[WhiteElo "1991"]
[BlackElo "2228"]
[Annotator "TA"]
[PlyCount "56"]
[EventDate "2022.05.12"]
[EventType "tourn"]
[EventCountry "MGL"]
[SourceTitle "playchess.com"]
[Source "ChessBase"]
[SourceQuality "1"]
[TimeControl "40/5400+30:1800+30"]

{[%evp 23,56,0,0,-30,-39,-37,-22,-34,-36,-17,33,40,47,33,154,147,156,157,183,183,236,231,288,54,53,0,0,0,0,0,0,-222,0,-29996,-29997]} 1. e4 {[%emt 0:00:11]} c5 {[%emt 0:00:36]} 2. Nf3 {[%emt 0:00:08]} d6 {[%emt 0:00:06]} 3. d4 {[%emt 0:00:05]} cxd4 {[%emt 0:00:03]} 4. Nxd4 {[%emt 0:00:06]} Nf6 {[%emt 0:00:03]} 5. Nc3 {[%emt 0:00:08]} g6 {[%emt 0:00:05]} 6. Be3 {[%emt 0:00:36]} Bg7 {[%emt 0:00:10]} 7. f3 {[%emt 0:00:16]} O-O {[%emt 0:00:53]} 8. Qd2 {[%emt 0:00:05]} Nc6 {[%emt 0:00:05]} 9. O-O-O {[%emt 0:00:37]} d5 {[%emt 0:00:20]} 10. exd5 {[%emt 0:00:42]} Nxd5 {[%emt 0:00:36]} 11. Nxc6 {[%emt 0:00:57]} bxc6 {[%emt 0:00:01]} 12. Nxd5 {[%emt 0:00:10]} cxd5 {[%emt 0:00:05]} 13. Bd4 {[%emt 0:01:18] B76: Sicilian Dragon: Yugoslav Attack, 9 g4 and 9 0-0-0.} e5 {[%emt 0:00:08]} 14. Bc5 {[%emt 0:00:32][%csl LRd5,LRf8] [#]} Be6 $1 {[%emt 0:00:08][%cal Oa8b8] Threatens to win with ...Rb8!} 15. Bb5 {[%emt 0:12:21] [#] The position is equal.} Rb8 $146 {[%emt 0:30:06]} ({Predecessor:} 15... d4 16. Bxf8 Qxf8 17. Kb1 Rb8 18. Ba4 d3 19. cxd3 e4 20. d4 exf3 21. gxf3 Qa3 22. Bb3 Rxb3 {0-1 (22) Polgar,I-Dely,P Kecskemet 1972}) 16. Ba4 {[%emt 0:04:39] [#]} (16. Bxf8 $2 Qxf8 17. Qa5 Qc5 $19) 16... Qh4 {[%emt 0:05:30]} ({Black should play} 16... Re8 $1 $11) 17. Bxf8 $14 {[%emt 0:01:25]} Kxf8 {[%emt 0:19:24]} 18. Qa5 {[%emt 0:05:44]} Qf4+ {[%emt 0:03:14]} (18... e4 $14 19. Bb3 exf3) 19. Kb1 $16 {[%emt 0:01:28]} e4 {[%emt 0:03:23] [#]} 20. Bb3 $1 {[%emt 0:01:47]} Qe5 {[%emt 0:02:17][%csl Gg7][%cal Re5b2]} 21. c3 {[%emt 0:09:23] Hoping for Rhe1.} e3 {[%emt 0:08:39]} (21... exf3 $142 22. gxf3 Kg8) 22. Rhe1 $18 {[%emt 0:02:48]} (22. Qxa7 $6 Rc8) (22. Bxd5 $2 e2 23. Qa3+ Kg8 24. Bxe6 exd1=Q+ 25. Rxd1 fxe6 $19) 22... Bh6 {[%emt 0:03:06]} 23. Bxd5 $2 {[%emt 0:09:40]} ({White should try} 23. Qxa7 $18 {[%cal Ob3d5] Strongly threatening Bxd5!} Rd8 24. Qd4) 23... e2 $14 {[%emt 0:04:21]} 24. Rd4 {[%emt 0:04:27]} (24. Rd3 $14 Kg7 {[#]} 25. Qxa7 $1 Bxd5 26. Qd4 (26. Rxd5 $2 Qxd5 27. Qa4 Qd2 $19) 26... Qxd4 27. Rxd4) 24... Qf5+ $1 $11 {[%emt 0:13:32]} 25. Ka1 {[%emt 0:01:54]} Qc2 $1 {[%emt 0:00:04][%csl Gb8][%cal Rc2b2]} 26. Bb3 {[%emt 0:17:53]} Bxb3 {[%emt 0:00:53] The board is on fire. Active counter play!} 27. axb3 {[%emt 0:01:29]} (27. Qxa7 $11 {and White stays safe.} Bf4 28. axb3 (28. Rxf4 $2 {leads to mate.} Qd1+)) 27... Bd2 $2 {[%emt 0:02:06]} (27... Bc1 $19 {[%csl Gc1][%cal Rc2b2]} 28. Qa3+ Kg7) 28. Qe5 $2 {[%emt 0:04:44][%mdl 8192]} (28. Qd5 $11 Bxe1 29. Qd6+ Kg7 30. Qe5+ Kh6 31. Qf4+ g5 32. Rd6+ (32. Qd6+ $2 Qg6 $19) 32... Kg7 33. Qxg5+ Kf8 34. Qh6+ Ke8 35. Qe3+ Kf8 36. Qh6+ Kg8 37. Qg5+ Kh8 38. Qe5+ Kg8 39. Qg5+ Kf8 40. Qh6+) 28... Qd1+ $1 {[%emt 0:00:14] Quite a comeback for Black.  Weighted Error Value: White=0.95/Black=0.35} 0-1